[Event "12th Senioren-Cup Tegernsee 2024"]
[Site "Rottach-Egern"]
[Date "2024.04.11"]
[Round "6.9"]
[White "Crickmore, Neil E G"]
[Black "Jahn, Constanze"]
[Result "1-0"]
[ECO "E20"]
[WhiteElo "2151"]
[BlackElo "2042"]
[Annotator "TA"]
[PlyCount "83"]
[EventDate "2024.04.02"]
[EventType "swiss"]
[EventCountry "GER"]
[SourceTitle "playchess.com"]
[Source "ChessBase"]
[SourceQuality "1"]
[TimeControl "7800+30"]

{[%evp 21,83,23,23,8,31,41,47,22,21,25,27,29,68,74,114,46,285,276,263,243,287,239,290,297,389,368,523,415,710,697,695,679,790,595,550,572,812,802,793,731,789,762,819,791,858,849,888,888,1229,1175,998,797,1557,1022,2625,2777,2577,1153,3064,3056,2076,1443,29993,29994]} 1. d4 {[%emt 0:00:31]} Nf6 {[%emt 0:00:05]} 2. c4 {[%emt 0:00:37]} e6 {[%emt 0:00:04]} 3. Nc3 {[%emt 0:00:32]} Bb4 {[%emt 0:00:36]} 4. f3 {[%emt 0:00:10]} d5 {[%emt 0:00:30]} 5. a3 {[%emt 0:00:15]} Bxc3+ {[%emt 0:00:16]} 6. bxc3 {[%emt 0:00:08]} h6 {[%emt 0:12:46]} 7. e3 {[%emt 0:01:12]} O-O {[%emt 0:01:12]} 8. cxd5 {[%emt 0:00:21]} exd5 {[%emt 0:01:09]} 9. Bd3 {[%emt 0:00:08]} c5 {[%emt 0:00:32]} 10. Ne2 {[%emt 0:00:14][%cal Bg1e2,Be2g3,Bg3f5][%mdl 32]} Nc6 {[%emt 0:03:24][%cal Bb8c6,Bc6a5,Ba5b3][%mdl 32]} 11. O-O {[%emt 0:01:17]} Re8 {[%emt 0:10:17]} 12. Ra2 {[%emt 0:19:34]} b6 {[%emt 0:18:59]} 13. g4 {[%emt 0:27:42]} Na5 {[%emt 0:10:25]} 14. Ng3 {[%emt 0:05:01] White is slightly better.} c4 {[%emt 0:03:25]} 15. Bf5 {[%emt 0:24:19]} Nb3 {[%emt 0:00:26]} 16. Rg2 {[%emt 0:18:52]} Nxc1 {[%emt 0:16:34]} 17. Qxc1 {[%emt 0:00:10]} Kf8 {[%emt 0:13:21]} 18. e4 {[%emt 0:21:23]} (18. Bc2 $16) 18... Bxf5 $2 {[%emt 0:08:09]} ({Black should play} 18... dxe4 $1 $14 19. fxe4 Bxf5 (19... Nxg4 $2 {too greedy.} 20. Bxc8 Qxc8 21. Qf4 $18) 20. gxf5 Nxe4) 19. Nxf5 $18 {[%emt 0:00:09]} Ng8 {[%emt 0:00:56]} 20. e5 {[%emt 0:01:16]} Re6 {[%emt 0:01:46]} 21. a4 {[%emt 0:03:05]} Rc8 {[%emt 0:10:37]} 22. f4 {[%emt 0:02:07][%cal Bf3f4,Bf4f5][%mdl 32]} Rcc6 {[%emt 0:07:00]} 23. Qa3+ {[%emt 0:04:42]} Ne7 {[%emt 0:00:06]} (23... Re7 $142 24. Nxe7 Nxe7) 24. Nxg7 {[%emt 0:00:07]} Rg6 {[%emt 0:07:12]} (24... Kxg7 $142 25. f5 Rg6 26. fxg6 Rxg6) 25. Nh5 {[%emt 0:00:37]} Ke8 {[%emt 0:01:55][%cal Bf8e8,Be8d7,Bd7c8][%mdl 32]} 26. f5 {[%emt 0:00:46]} Rg5 {[%emt 0:00:20]} 27. Nf6+ {[%emt 0:01:03]} Rxf6 {[%emt 0:00:41]} 28. exf6 {[%emt 0:00:05][%cal Of1e1] [#] aiming for Re1!} Nc6 {[%emt 0:00:08]} 29. h4 {[%emt 0:00:28]} Rg8 {[%emt 0:00:30]} 30. g5 {[%emt 0:00:07]} Kd7 {[%emt 0:00:31]} 31. Re1 {[%emt 0:00:59]} hxg5 {[%emt 0:02:20]} 32. hxg5 {[%emt 0:00:05]} Kc8 {[%emt 0:00:26]} 33. Qc1 {[%emt 0:00:29]} Qd6 {[%emt 0:00:40]} 34. Qe3 {[%emt 0:00:11]} a6 {[%emt 0:01:33]} 35. Qg3 {[%emt 0:01:31]} Qd8 {[%emt 0:01:09]} 36. Qf3 {[%emt 0:02:35]} Qd6 {[%emt 0:02:11]} 37. Qh5 {[%emt 0:01:55]} Nd8 {[%emt 0:01:02]} 38. Qh7 {[%emt 0:00:14]} Rf8 {[%emt 0:00:48]} 39. Qg7 {[%emt 0:00:08]} (39. g6 $142 fxg6 40. fxg6 Qxf6 41. g7) 39... Nc6 {[%emt 0:00:31] [#]} 40. Re7 $1 {[%emt 0:01:01][%cal Be1e7,Be7f7,Bf7f8][%mdl 544]} Qd8 {[%emt 0:00:11]} (40... Rd8 41. Qxf7) 41. Rxf7 {[%emt 0:01:38]} Qe8 {[%emt 0:01:13]} 42. Rxf8 {[%emt 0:00:07] Black did not feel at home in the position after the opening.   Weighted Error Value: White=0.33/Black=0.57.  Loses game:     	---       	Black=1      Mistake:       	White=1     	Black=2      Inaccurate:     	---       	Black=4      OK:         	White=8     	Black=3} 1-0

[Event "12th Senioren-Cup Tegernsee 2024"]
[Site "Rottach-Egern"]
[Date "2024.04.11"]
[Round "6.10"]
[White "Wenner, Tobias"]
[Black "Strobel, Walter"]
[Result "1/2-1/2"]
[ECO "A11"]
[WhiteElo "2051"]
[BlackElo "2147"]
[Annotator "TA"]
[PlyCount "32"]
[EventDate "2024.04.02"]
[EventType "swiss"]
[EventCountry "GER"]
[SourceTitle "playchess.com"]
[Source "ChessBase"]
[SourceQuality "1"]
[TimeControl "7800+30"]

{[%evp 10,32,11,10,44,38,54,41,45,46,50,42,35,43,84,35,59,-27,-34,-20,-34,-20,-20,-22,-31]} 1. Nf3 {[%emt 0:00:04]} d5 {[%emt 0:00:28]} 2. c4 {[%emt 0:00:06]} c6 {[%emt 0:00:59]} 3. g3 {[%emt 0:00:09]} Nf6 {[%emt 0:00:13]} 4. Bg2 {[%emt 0:00:08]} Bf5 {[%emt 0:00:38]} 5. Qb3 {[%emt 0:00:21]} Qb6 {[%emt 0:02:32]} 6. d3 {[%emt 0:00:17]} dxc4 {[%emt 0:08:22]} (6... Nbd7 {simplifies} 7. cxd5 Qxb3 8. axb3 Nxd5 9. O-O Bg4) 7. Qxc4 {[%emt 0:00:49]} e6 {[%emt 0:01:17]} 8. Be3 {[%emt 0:00:30]} Qxb2 {[%emt 0:06:43] [#] White must now prevent ...Bb4+. White is slightly better.} 9. Bd4 {[%emt 0:00:18]} Qb4+ {[%emt 0:00:16]} 10. Nbd2 {[%emt 0:00:10]} Qxc4 {[%emt 0:01:40]} 11. Nxc4 {[%emt 0:00:09]} b5 {[%emt 0:04:56]} 12. Nce5 {[%emt 0:00:59] White is more active.} (12. Ne3 $16) 12... Nfd7 {[%emt 0:03:37]} 13. Nd2 {[%emt 0:31:36]} (13. Rc1 $14) 13... Nxe5 $11 {[%emt 0:14:37]} 14. Bxe5 {[%emt 0:00:03]} f6 {[%emt 0:00:09]} 15. Bxb8 {[%emt 0:00:17]} Rxb8 {[%emt 0:00:04]} 16. Bxc6+ {[%emt 0:00:08]} Kf7 {[%emt 0:04:44] Weighted Error Value: White=0.21 (precise) /Black=0.11 (very precise) .  Mistake:       	White=2     	---        Inaccurate:     	---       	Black=1      OK:         	White=3     	Black=5      Best:        	White=1     	Black=1} 1/2-1/2

[Event "12th Senioren-Cup Tegernsee 2024"]
[Site "Rottach-Egern"]
[Date "2024.04.12"]
[Round "7.3"]
[White "Belke, Frank"]
[Black "Vatter, Hans-Joachim"]
[Result "1/2-1/2"]
[ECO "D50"]
[WhiteElo "2163"]
[BlackElo "2211"]
[Annotator "TA"]
[PlyCount "96"]
[EventDate "2024.04.02"]
[EventType "swiss"]
[EventCountry "GER"]
[SourceTitle "playchess.com"]
[Source "ChessBase"]
[SourceQuality "1"]
[TimeControl "7800+30"]

{[%evp 9,96,21,24,-11,4,-8,0,0,-5,-9,0,0,0,0,10,0,0,0,0,0,0,0,5,9,6,0,0,0,0,0,41,42,39,37,37,31,31,31,38,29,37,16,16,13,14,11,11,11,18,11,11,3,3,3,3,3,3,3,3,3,3,3,3,3,3,3,3,3,3,3,3,3,3,3,3,3,3,3,3,3,3,3,3,3,3,3,3,3,3]} 1. d4 {[%emt 0:00:03]} Nf6 {[%emt 0:00:16]} 2. c4 {[%emt 0:00:02]} e6 {[%emt 0:00:10]} 3. Nc3 {[%emt 0:00:04]} d5 {[%emt 0:00:20]} 4. Bg5 {[%emt 0:00:07]} dxc4 {[%emt 0:01:09]} 5. e3 {[%emt 0:01:01]} c5 {[%emt 0:01:27]} 6. dxc5 {[%emt 0:00:04]} Qxd1+ {[%emt 0:02:34]} 7. Rxd1 {[%emt 0:00:03]} Bxc5 {[%emt 0:00:11]} 8. Bxc4 {[%emt 0:00:41]} a6 {[%emt 0:05:39] Prevents Nb5} 9. Ne4 {[%emt 0:05:14]} Be7 {[%emt 0:00:42]} 10. Nd6+ {[%emt 0:02:45]} Bxd6 {[%emt 0:00:27]} 11. Rxd6 {[%emt 0:00:01]} Nc6 {[%emt 0:00:21]} 12. Bxf6 {[%emt 0:06:27]} gxf6 {[%emt 0:01:33]} 13. Nf3 {[%emt 0:00:02]} Ke7 {[%emt 0:00:48]} 14. Rd2 {[%emt 0:00:02]} Bd7 {[%emt 0:04:14]} 15. Ke2 {[%emt 0:08:12]} Ne5 {[%emt 0:02:04]} 16. Nxe5 {[%emt 0:01:48]} fxe5 {[%emt 0:00:03]} 17. Rhd1 {[%emt 0:01:02]} Ba4 {[%emt 0:03:53]} 18. Bb3 {[%emt 0:07:01]} Bb5+ {[%emt 0:01:56]} 19. Ke1 {[%emt 0:00:08]} Rad8 {[%emt 0:01:26]} 20. Rxd8 {[%emt 0:00:09]} Rxd8 {[%emt 0:00:01]} 21. Rxd8 {[%emt 0:00:11]} Kxd8 $14 {[%emt 0:00:08][%mdl 4096] Endgame. KB-KB} 22. Bc2 {[%emt 0:01:42]} h6 {[%emt 0:00:03]} 23. b4 {[%emt 0:01:14]} b6 {[%emt 0:06:24]} 24. Kd2 {[%emt 0:00:24]} a5 {[%emt 0:01:40]} 25. bxa5 {[%emt 0:01:15]} bxa5 {[%emt 0:00:02] The position is equal.} 26. Bd3 {[%emt 0:01:41]} Bc6 {[%emt 0:00:09]} 27. g3 {[%emt 0:00:05]} Kc7 {[%emt 0:00:02]} 28. Kc3 {[%emt 0:00:17]} Kb6 {[%emt 0:00:07]} 29. a3 {[%emt 0:00:11]} Kc5 {[%emt 0:00:06]} 30. h4 {[%emt 0:00:27]} e4 {[%emt 0:04:29]} 31. Be2 {[%emt 0:01:02]} Bd5 {[%emt 0:01:43]} 32. Bh5 {[%emt 0:00:30]} f6 {[%emt 0:01:48]} 33. Bd1 {[%emt 0:00:34]} Kb5 {[%emt 0:24:50]} 34. Kd4 {[%emt 0:11:39]} Kc6 {[%emt 0:00:19]} 35. Bc2 {[%emt 0:00:29]} e5+ {[%emt 0:00:06]} 36. Kc3 {[%emt 0:00:03]} Kc5 {[%emt 0:00:16]} 37. Ba4 {[%emt 0:00:39]} Be6 {[%emt 0:01:46]} 38. Be8 {[%emt 0:00:59]} Bd5 {[%emt 0:00:48]} 39. Bd7 {[%emt 0:00:25]} Bb7 {[%emt 0:00:24]} 40. Be6 {[%emt 0:05:28]} Bc6 {[%emt 0:00:59]} 41. Kb3 {[%emt 0:00:34]} Bb5 {[%emt 0:02:23]} 42. Bc8 {[%emt 0:06:36]} Bc6 {[%emt 0:03:38]} 43. Ba6 {[%emt 0:00:53]} Bd5+ {[%emt 0:00:55]} 44. Kc3 {[%emt 0:02:16]} Bc6 {[%emt 0:00:15]} 45. Bc4 {[%emt 0:04:27]} Bb7 {[%emt 0:02:20]} 46. Bf7 {[%emt 0:00:07]} Bc6 {[%emt 0:00:06]} 47. Kb3 {[%emt 0:00:31]} Bb5 {[%emt 0:00:17]} 48. Be6 {[%emt 0:00:29]} Bc6 {[%emt 0:00:19] Weighted Error Value: White=0.03 (flawless) /Black=0.02 (flawless) .  Inaccurate:     	---       	Black=1      OK:         	White=11    	Black=22     Best:        	---       	Black=3} 1/2-1/2

[Event "12th Senioren-Cup Tegernsee 2024"]
[Site "Rottach-Egern"]
[Date "2024.04.12"]
[Round "7.4"]
[White "Babar, Michael"]
[Black "Lindam, Ingo"]
[Result "1/2-1/2"]
[ECO "A49"]
[WhiteElo "2099"]
[BlackElo "2160"]
[Annotator "TA"]
[PlyCount "46"]
[EventDate "2024.04.02"]
[EventType "swiss"]
[EventCountry "GER"]
[SourceTitle "playchess.com"]
[Source "ChessBase"]
[SourceQuality "1"]
[TimeControl "7800+30"]

{[%evp 11,46,12,12,9,10,-33,-16,-13,-16,-44,-50,-50,-54,-78,-45,-60,-54,-45,-41,-64,-59,-59,-43,-49,-36,-40,-42,-55,-64,-59,-11,-10,-22,-18,0,0,0]} 1. Nf3 {[%emt 0:00:07]} Nf6 {[%emt 0:00:01]} 2. d4 {[%emt 0:00:01]} g6 {[%emt 0:00:02]} 3. g3 {[%emt 0:00:15]} Bg7 {[%emt 0:00:10]} 4. Bg2 {[%emt 0:00:05]} d6 {[%emt 0:03:07]} 5. O-O {[%emt 0:00:12]} O-O {[%emt 0:00:03]} 6. b3 {[%emt 0:01:23]} c5 {[%emt 0:00:51]} 7. e3 {[%emt 0:03:04]} e5 {[%emt 0:23:31]} 8. Bb2 {[%emt 0:18:05]} cxd4 {[%emt 0:04:55]} 9. exd4 {[%emt 0:00:03]} e4 {[%emt 0:01:12]} 10. Nfd2 {[%emt 0:00:42]} Bg4 {[%emt 0:02:09]} 11. f3 {[%emt 1:52:03]} exf3 {[%emt 0:02:00]} 12. Bxf3 {[%emt 0:00:00]} Bxf3 {[%emt 0:06:17]} 13. Qxf3 {[%emt 0:00:00]} d5 {[%emt 0:00:31]} 14. Na3 {[%emt 0:00:00][%cal Bb1a3,Ba3c2,Bc2e1,Be1d3][%mdl 32]} Nc6 {[%emt 0:02:11]} 15. c3 {[%emt 0:00:00]} Qd7 {[%emt 0:07:07]} 16. Nc2 {[%emt 0:00:00]} Rfe8 {[%emt 0:01:42]} 17. Rae1 {[%emt 0:00:00]} Ng4 {[%emt 0:07:19]} 18. Rxe8+ {[%emt 0:00:00]} Rxe8 {[%emt 0:00:21]} 19. Re1 {[%emt 0:00:00]} Rxe1+ {[%emt 0:04:26]} 20. Nxe1 {[%emt 0:00:00]} f5 {[%emt 0:07:48]} (20... Ne7 $15 {is more appropriate.}) 21. Nd3 $11 {[%emt 0:00:00] The position is equal.} Nf6 {[%emt 0:01:10]} 22. Qe2 {[%emt 0:00:00]} Ne4 {[%emt 0:01:12]} 23. Nxe4 {[%emt 0:00:00]} dxe4 {[%emt 0:08:12] Weighted Error Value: White=0.11 (very precise) /Black=0.10 (very precise) .  Mistake:       	---       	Black=1      Inaccurate:     	White=2     	Black=1      OK:         	White=4     	Black=4      Best:        	---       	Black=1} 1/2-1/2

[Event "12th Senioren-Cup Tegernsee 2024"]
[Site "Rottach-Egern"]
[Date "2024.04.12"]
[Round "7.5"]
[White "Luciani, Carlo"]
[Black "Mertens, Klaus"]
[Result "1/2-1/2"]
[ECO "B07"]
[WhiteElo "2159"]
[BlackElo "2093"]
[Annotator "TA"]
[PlyCount "48"]
[EventDate "2024.04.02"]
[EventType "swiss"]
[EventCountry "GER"]
[SourceTitle "playchess.com"]
[Source "ChessBase"]
[SourceQuality "1"]
[TimeControl "7800+30"]

{[%evp 9,48,42,52,38,43,21,18,14,22,15,15,-24,-18,-58,-3,-17,-9,-61,0,-22,35,0,42,35,47,24,88,72,118,41,40,5,0,5,0,0,12,-31,-26,-25,-19]} 1. e4 {[%emt 0:00:03]} d6 {[%emt 0:00:06]} 2. d4 {[%emt 0:00:15]} Nf6 {[%emt 0:00:04]} 3. Nc3 {[%emt 0:00:14]} c6 {[%emt 0:00:09]} 4. Nf3 {[%emt 0:01:13]} Qa5 {[%emt 0:01:18]} 5. Bd2 {[%emt 0:01:02]} e5 {[%emt 0:04:48]} 6. dxe5 {[%emt 0:08:28]} dxe5 {[%emt 0:00:25] [#]} 7. Nd5 $1 {[%emt 0:00:28] Repels Qc7} Qd8 {[%emt 0:00:09]} 8. Nxf6+ {[%emt 0:00:30] The position is equal.} Qxf6 {[%emt 0:00:02]} 9. Bg5 {[%emt 0:00:08]} Qd6 {[%emt 0:00:29]} 10. Qe2 {[%emt 0:13:58] Rd1 would now be deadly.} f6 {[%emt 0:07:53]} 11. Be3 {[%emt 0:12:12]} Be6 {[%emt 0:00:53]} (11... Qb4+ $15 12. Nd2 Qxb2 13. Qh5+ g6) 12. Nd2 {[%emt 0:08:20]} Qb4 {[%emt 0:05:28]} 13. O-O-O {[%emt 0:00:39]} (13. Qd1 $11) 13... Nd7 {[%emt 0:07:14]} (13... Qa4 $1 $15 14. Qh5+ g6) 14. Kb1 {[%emt 0:06:36]} b5 {[%emt 0:12:54]} (14... O-O-O $11) 15. f3 {[%emt 0:05:01]} Nc5 {[%emt 0:10:50]} 16. Nb3 {[%emt 0:02:20]} Nb7 {[%emt 0:08:32]} 17. Qf2 {[%emt 0:01:17]} (17. a3 $5 Qe7 18. f4 $11) 17... Qa4 {[%emt 0:12:30]} (17... a5 $11 {remains equal.}) 18. h4 {[%emt 0:04:40]} a5 {[%emt 0:04:53]} (18... Bd6 $142) 19. g3 {[%emt 0:01:11]} ({White should play} 19. f4 $16) 19... Qb4 $14 {[%emt 0:00:25]} 20. Bh3 {[%emt 0:02:17]} Bxh3 {[%emt 0:00:53]} 21. Rxh3 {[%emt 0:00:11]} a4 {[%emt 0:00:50]} 22. Nc1 {[%emt 0:12:08]} Qc4 {[%emt 0:04:24]} 23. Qe2 {[%emt 0:01:53]} Qxe2 {[%emt 0:06:24]} 24. Nxe2 {[%emt 0:01:02]} Bc5 {[%emt 0:01:10] Weighted Error Value: White=0.27 (precise) /Black=0.27 (precise) .  Mistake:       	White=2     	Black=5      Inaccurate:     	White=5     	Black=1      OK:         	White=3     	Black=9} 1/2-1/2

[Event "12th Senioren-Cup Tegernsee 2024"]
[Site "Rottach-Egern"]
[Date "2024.04.12"]
[Round "7.8"]
[White "Cordts, Ingo"]
[Black "Schrems, Hermann"]
[Result "0-1"]
[ECO "D27"]
[WhiteElo "2225"]
[BlackElo "2032"]
[Annotator "TA"]
[PlyCount "62"]
[EventDate "2024.04.02"]
[EventType "swiss"]
[EventCountry "GER"]
[SourceTitle "playchess.com"]
[Source "ChessBase"]
[SourceQuality "1"]
[TimeControl "7800+30"]

{[%evp 12,62,20,18,29,3,44,48,66,60,57,47,58,44,60,47,89,81,78,89,95,72,91,39,59,67,75,74,67,66,75,25,116,90,118,108,114,-546,-568,-816,-792,-1129,-1123,-1919,-1919,-29988,-29989,-29989,-29990,-29995,-29996,-29996,-29997]} 1. Nf3 {[%emt 0:00:03]} d5 {[%emt 0:00:07]} 2. d4 {[%emt 0:00:13]} Nf6 {[%emt 0:00:07]} 3. c4 {[%emt 0:00:13]} dxc4 {[%emt 0:00:06]} 4. e3 {[%emt 0:00:28]} a6 {[%emt 0:00:04]} 5. Bxc4 {[%emt 0:00:51]} e6 {[%emt 0:00:07]} 6. O-O {[%emt 0:00:25]} c5 {[%emt 0:00:06]} 7. b3 {[%emt 0:03:04]} Nbd7 {[%emt 0:01:07]} 8. Be2 {[%emt 0:00:37]} Qc7 {[%emt 0:00:12]} 9. Bb2 {[%emt 0:01:02]} Be7 {[%emt 0:00:20] White is slightly better.} 10. Nbd2 {[%emt 0:00:39]} b6 {[%emt 0:01:41]} 11. Rc1 {[%emt 0:01:51]} Bb7 {[%emt 0:00:43]} 12. dxc5 {[%emt 0:01:40]} bxc5 {[%emt 0:00:01]} 13. Nc4 {[%emt 0:12:41]} Rd8 {[%emt 0:01:12]} 14. Qe1 {[%emt 0:04:37]} O-O {[%emt 0:00:22]} 15. Qa5 {[%emt 0:08:49]} Qb8 {[%emt 0:00:43]} 16. h3 {[%emt 0:04:02]} Nd5 {[%emt 0:02:32]} 17. Nce5 {[%emt 0:07:26]} ({White should play} 17. Nfe5 $16) 17... Bd6 {[%emt 0:05:54]} 18. Nxd7 {[%emt 0:05:00]} Rxd7 {[%emt 0:00:13]} 19. Qa4 {[%emt 0:01:09]} (19. Bxa6 $2 Qa7 20. e4 Nb4 $19 (20... Qxa6 $2 21. Qxa6 Bxa6 22. exd5 $19) (20... Bxa6 $2 21. exd5 Bxf1 22. Qc3 $17)) 19... Rfd8 {[%emt 0:00:23]} 20. Qg4 {[%emt 0:10:02][%csl Gb2][%cal Rg4g7] [#]} (20. Bxa6 Nb4 21. Bb5 Rc7 $17) 20... e5 {[%emt 0:00:59]} 21. Rc4 {[%emt 0:08:30]} (21. Nd2 $16) 21... g6 {[%emt 0:07:03]} (21... Bc6 $11 {keeps the balance.}) 22. Qh4 {[%emt 0:06:34]} Be7 {[%emt 0:11:49]} 23. Ng5 {[%emt 0:05:08]} Nf6 {[%emt 0:02:25] [#] Strongly threatening ...Rd2.} 24. f4 $2 {[%emt 0:03:13][%mdl 8192] This move loses the game for White.} (24. Bc3 $16 {stays on course.}) 24... Rd2 $19 {[%emt 0:00:22][%csl LRb2,LRe2]} 25. fxe5 {[%emt 0:21:08]} Rxe2 {[%emt 0:00:32]} (25... Rxb2 $2 {too greedy.} 26. exf6 h5 27. fxe7 $18) 26. Rg4 {[%emt 0:01:57]} Nh5 {[%emt 0:03:14]} (26... Nxg4 27. Qxh7+ Kf8 28. Qxf7#) (26... Rxb2 $2 {perishes.} 27. exf6 h5 28. fxe7 $18) 27. Bc3 {[%emt 0:09:18]} h6 {[%emt 0:00:39]} ({Worse is} 27... Rxe3 28. Qf2 Bxg5 (28... Rxc3 29. Qxf7+ Kh8 30. Qxh7#) 29. Qxf7+ Kh8 30. Rxg5 Rxc3 31. Rxh5 gxh5 32. Qf6+ Kg8 33. Qe6+ Kh8 34. Qf6+ Kg8 35. Qg5+ Kh8 36. Qf6+ $11) 28. Rf6 {[%emt 0:02:26]} Bxf6 {[%emt 0:00:27] Black mates.} 29. Kf1 {[%emt 0:00:45]} Rxa2 {[%emt 0:01:05]} 30. exf6 {[%emt 0:01:01]} Rd1+ {[%emt 0:00:11]} 31. Be1 {[%emt 0:00:12]} Qh2 {[%emt 0:00:07] Weighted Error Value: White=1.05/Black=0.11 (very precise) .  Loses game:     	White=1     	---        Mistake:       	White=2     	Black=1      Inaccurate:     	White=3     	Black=3      OK:         	White=7     	Black=5      Best:        	---       	Black=1} 0-1

[Event "12th Senioren-Cup Tegernsee 2024"]
[Site "Rottach-Egern"]
[Date "2024.04.12"]
[Round "7.9"]
[White "Schatz, Christian"]
[Black "Wenner, Tobias"]
[Result "1/2-1/2"]
[ECO "E62"]
[WhiteElo "2158"]
[BlackElo "2051"]
[Annotator "TA"]
[PlyCount "62"]
[EventDate "2024.04.02"]
[EventType "swiss"]
[EventCountry "GER"]
[SourceTitle "playchess.com"]
[Source "ChessBase"]
[SourceQuality "1"]
[TimeControl "7800+30"]

{[%evp 16,62,26,30,35,22,30,12,37,-10,47,0,6,-12,-7,-22,-19,-52,-29,-92,-91,-94,-93,-102,-74,-91,-80,-108,-93,-85,-44,-44,-68,-54,-49,-179,-99,-100,-44,-47,-47,-38,-31,-51,-41,-62,0,0,30]} 1. Nf3 {[%emt 0:00:02]} Nf6 {[%emt 0:00:07]} 2. c4 {[%emt 0:00:22]} g6 {[%emt 0:00:20]} 3. Nc3 {[%emt 0:00:20]} Bg7 {[%emt 0:00:07]} 4. d4 {[%emt 0:01:00]} O-O {[%emt 0:00:14]} 5. g3 {[%emt 0:02:30]} d6 {[%emt 0:00:40]} 6. Bg2 {[%emt 0:00:08]} Nc6 {[%emt 0:00:22]} 7. O-O {[%emt 0:00:41]} e5 {[%emt 0:00:22]} 8. d5 {[%emt 0:01:58]} Nb8 {[%emt 0:00:29]} 9. e4 {[%emt 0:00:19]} a5 {[%emt 0:00:23]} 10. Ne1 {[%emt 0:00:39]} Na6 {[%emt 0:00:27]} 11. Nd3 {[%emt 0:00:14]} b6 {[%emt 0:05:40]} 12. h3 {[%emt 0:01:06]} (12. a3 $14) 12... Nc5 {[%emt 0:00:42]} (12... Nd7 $11) 13. Be3 {[%emt 0:04:06]} Nfd7 {[%emt 0:02:22]} 14. Nxc5 {[%emt 0:02:30]} Nxc5 {[%emt 0:00:08]} 15. Qd2 {[%emt 0:04:07]} f5 {[%emt 0:05:10][%cal Of5f4]} 16. f3 {[%emt 0:06:08]} Bd7 {[%emt 0:01:26][%cal Of5f4]} 17. b3 {[%emt 0:05:11] [#]} (17. Ne2 $11) 17... f4 $1 $17 {[%emt 0:03:48]} 18. Bf2 {[%emt 0:02:05]} fxg3 {[%emt 0:03:20]} 19. Bxg3 {[%emt 0:00:06]} Qe7 {[%emt 0:07:32]} 20. Rae1 {[%emt 0:18:25]} Rae8 {[%emt 0:06:27]} 21. Nb5 {[%emt 0:03:56]} Bxb5 {[%emt 0:06:02]} 22. cxb5 {[%emt 0:00:06]} Qd7 {[%emt 0:00:31]} 23. Qe2 {[%emt 0:03:12]} Bh6 {[%emt 0:00:47]} 24. Qc4 {[%emt 0:01:48]} Qe7 {[%emt 0:16:53]} 25. a3 {[%emt 0:02:45] [#]} (25. Re2 $15) 25... Qg5 {[%emt 0:01:00]} (25... a4 $1 $19 26. bxa4 Ra8) 26. Kh2 {[%emt 0:01:34]} Qd2 {[%emt 0:03:06]} (26... a4 $17 27. b4 Nb3 28. Qxc7 Qe7 29. Qxe7 Rxe7) 27. Re2 $15 {[%emt 0:07:40]} Qd3 {[%emt 0:00:55]} 28. Qxd3 {[%emt 0:00:36]} Nxd3 {[%emt 0:00:12]} 29. Rc2 {[%emt 0:00:29] White is weak on the dark squares} Re7 {[%emt 0:04:07]} 30. Rd1 {[%emt 0:04:50]} Nf4 {[%emt 0:09:45]} (30... Nc5 $15 31. Rb1 a4 32. bxa4 Ra8) 31. Bf2 $11 {[%emt 0:10:01]} Nxg2 {[%emt 0:05:25] Weighted Error Value: White=0.23 (precise) /Black=0.22 (precise) .  Mistake:       	White=3     	Black=4      Inaccurate:     	White=3     	Black=2      OK:         	White=6     	Black=5      Best:        	White=1     	---        Brilliant:      	---       	Black=1} 1/2-1/2